fUST/lending_fUST_20250225
["ID","MTS","AMOUNT","RATE_DAILY","PERIOD"]
[354379227,1740468658648,-500.0,0.00068219,120]
[354379229,1740468658658,-250.0,0.00068219,120]
[354379231,1740468658668,-500.0,0.00068219,120]
[354379233,1740468658678,-588.66,0.00068219,120]
[354379235,1740468658688,-500.0,0.00068219,120]
[354379237,1740468658699,-1694.77,0.00068219,120]
[354379239,1740468658709,-500.0,0.00068219,120]
[354379241,1740468658719,-6822.91,0.00068219,120]
[354379243,1740468658729,-500.0,0.00068219,120]
[354379245,1740468658740,-500.0,0.00068219,120]
[354379247,1740468658749,-500.0,0.00068219,120]
[354379249,1740468658759,-109394.36,0.00068219,7]
[354379251,1740468658769,-500.0,0.00068219,120]
[354379253,1740468658779,-500.0,0.00068219,120]
[354379255,1740468658789,-500.0,0.00068219,120]
[354379257,1740468658799,-8184.75,0.00068219,120]
[354379259,1740468658809,-845.92,0.00068219,120]
[354379261,1740468658819,-500.0,0.00068219,120]
[354379264,1740468658830,-500.0,0.00068219,120]
[354379266,1740468658839,-500.0,0.00068219,120]
[354379268,1740468658849,-500.0,0.00068219,120]
[354379270,1740468658860,-3001.35,0.00068219,120]
[354379272,1740468658869,-500.0,0.00068219,120]
[354379274,1740468658879,-1623.81,0.00068219,120]
[354379276,1740468658889,-1251.72,0.00068219,120]
[354379278,1740468658899,-500.0,0.00068219,120]
[354379280,1740468658909,-500.0,0.00068219,120]
[354379282,1740468658919,-151.0,0.00068219,120]
[354379284,1740468658928,-724.54,0.00068219,120]
[354379286,1740468658938,-503.46569415,0.00068219,120]
[354379288,1740468658947,-2534.53,0.00068219,120]
[354379290,1740468658956,-500.0,0.00068219,120]
[354379292,1740468658966,-500.0,0.00068219,120]
[354379294,1740468658976,-1740.45,0.00068219,120]
[354379296,1740468658988,-1091.05,0.00068219,120]
[354379298,1740468658997,-696.88,0.00068219,120]
[354379300,1740468659009,-500.0,0.00068219,120]
[354379302,1740468659020,-500.0,0.00068219,120]
[354379304,1740468659030,-500.0,0.00068219,120]
[354379306,1740468659039,-7345.85,0.00068219,120]
[354379308,1740468659049,-3757.45,0.00068219,120]
[354379310,1740468659060,-1297.71,0.00068219,120]
[354379312,1740468659072,-500.0,0.00068219,120]
[354379314,1740468659082,-1311.59,0.00068219,120]
[354379316,1740468659092,-1867.12,0.00068219,120]
[354379318,1740468659103,-586.39,0.00068219,120]
[354379320,1740468659113,-833.34,0.00068219,120]
[354379322,1740468659123,-500.0,0.00068219,120]
[354379324,1740468659133,-500.0,0.00068219,120]
[354379326,1740468659143,-500.0,0.00068219,120]
[354379328,1740468659155,-1439.34,0.00068219,3]
[354379330,1740468659165,-1916.91,0.00068219,120]
[354379332,1740468659175,-777.06,0.00068219,120]
[354379334,1740468659185,-500.0,0.00068219,120]
[354379336,1740468659195,-400.63505895,0.00068219,120]
[354379339,1740468659204,-151.0,0.00068219,120]
[354379341,1740468659214,-412.258835,0.00068219,120]
[354379343,1740468659225,-500.0,0.00068219,120]
[354379345,1740468659234,-2739.8,0.00068219,120]
[354379347,1740468659245,-500.0,0.00068219,120]
[354379349,1740468659256,-412.258835,0.00068219,120]
[354379351,1740468659267,-1448.56,0.00068219,120]
[354379353,1740468659277,-481.838,0.00068219,120]
[354379355,1740468659287,-308347.24,0.000683,2]
[354379357,1740468659297,-3159.59,0.000683,30]
[354379359,1740468659307,-500000.0,0.000684,120]
[354379361,1740468659317,-271.974035,0.00068493,120]
[354379363,1740468659326,-271.974035,0.00068493,120]
[354379365,1740468659337,-158.873165,0.00068493,120]
[354379367,1740468659346,-158.873165,0.00068493,120]
[354379369,1740468659356,-369.761236,0.00068493,120]
[354379371,1740468659366,-369.761236,0.00068493,120]
[354379373,1740468659376,-1042.285258,0.00068493,120]
[354379375,1740468659386,-500.0,0.00068493,30]
[354379377,1740468659395,-500.0,0.00068493,30]
[354379379,1740468659405,-750.9,0.00068493,120]
[354379380,1740468659414,-232.437872,0.00068493,120]
[354379382,1740468659424,-500.0,0.00068493,120]
[354379383,1740468659434,-2111.7,0.00068493,120]
[354379385,1740468659443,-516.54,0.00068493,120]
[354379386,1740468659453,-555.272174,0.00068493,120]
[354379388,1740468659463,-555.272174,0.00068493,120]
[354379389,1740468659472,-500.0,0.00068493,120]
[354379391,1740468659482,-151.0,0.00068493,120]
[354379392,1740468659492,-500.0,0.00068493,120]
[354379394,1740468659501,-190.337192,0.00068493,120]
[354379395,1740468659513,-1360.77,0.00068493,20]
[354379397,1740468659522,-500.0,0.00068493,120]
[354379398,1740468659532,-1249.99,0.00068493,120]
[354379400,1740468659541,-151.0,0.00068493,120]
[354379401,1740468659551,-500.0,0.00068493,120]
[354379403,1740468659560,-290.829806,0.00068493,120]
[354379404,1740468659570,-290.829806,0.00068493,120]
[354379406,1740468659579,-151.0,0.00068493,120]
[354379407,1740468659590,-500.0,0.00068493,120]
[354379409,1740468659599,-500.0,0.00068493,120]
[354379410,1740468659608,-492.43,0.00068493,120]
[354379412,1740468659618,-1236.21,0.00068493,120]
[354379413,1740468659627,-385.62377,0.00068493,120]
[354379415,1740468659636,-500.0,0.00068493,120]
[354379416,1740468659646,-385.62377,0.00068493,120]
[354379418,1740468659655,-157.663645,0.00068493,120]
[354379419,1740468659664,-157.663645,0.00068493,120]
[354379421,1740468659673,-500.0,0.00068493,120]
[354379423,1740468659682,-500.0,0.00068493,120]
[354379424,1740468659692,-500.0,0.00068493,120]
[354379426,1740468659701,-500.0,0.00068493,120]
[354379427,1740468659711,-500.0,0.00068493,120]
[354379429,1740468659720,-510.415886,0.00068493,120]
[354379431,1740468659730,-510.415886,0.00068493,120]
[354379437,1740468659814,-500.0,0.00068493,120]
[354379439,1740468659825,-500.0,0.00068493,120]
[354379441,1740468659836,-500.0,0.00068493,120]
[354379442,1740468659846,-250.0,0.00068493,120]
[354379444,1740468659856,-500.0,0.00068493,120]
[354379445,1740468659866,-151.0,0.00068493,120]
[354379447,1740468659877,-588.66,0.00068493,120]
[354379448,1740468659887,-587.12050199,0.00068493,120]
[354379449,1740468659896,-151.0,0.00068493,120]
[354379451,1740468659906,-151.0,0.00068493,120]
[354379453,1740468659915,-196.053098,0.00068493,120]
[354379454,1740468659924,-196.053098,0.00068493,120]
[354379456,1740468659933,-1694.77,0.00068493,120]
[354379457,1740468659943,-273.315442,0.00068493,120]
[354379459,1740468659952,-500.0,0.00068493,120]
[354379460,1740468659961,-6822.91,0.00068493,120]
[354379462,1740468659970,-273.315442,0.00068493,120]
[354379463,1740468659980,-500.0,0.00068493,120]
[354379465,1740468659989,-151.0,0.00068493,120]
[354379467,1740468659999,-500.0,0.00068493,120]
[354379468,1740468660011,-109394.36,0.00068493,7]
[354379470,1740468660021,-500.0,0.00068493,120]
[354379472,1740468660030,-500.0,0.00068493,120]
[354379473,1740468660040,-500.0,0.00068493,120]
[354379475,1740468660050,-8184.75,0.00068493,120]
[354379477,1740468660063,-845.92,0.00068493,120]
[354379478,1740468660073,-500.0,0.00068493,120]
[354379480,1740468660083,-500.0,0.00068493,120]
[354379481,1740468660093,-500.0,0.00068493,120]
[354379483,1740468660104,-500.0,0.00068493,120]
[354379485,1740468660114,-3001.35,0.00068493,120]
[354379486,1740468660124,-500.0,0.00068493,120]
[354379488,1740468660134,-1623.81,0.00068493,120]
[354379490,1740468660146,-1251.72,0.00068493,120]
[354379491,1740468660156,-500.0,0.00068493,120]
[354379493,1740468660167,-500.0,0.00068493,120]
[354379495,1740468660177,-724.54,0.00068493,120]
[354379496,1740468660186,-2534.53,0.00068493,120]
[354379498,1740468660197,-500.0,0.00068493,120]
[354379499,1740468660207,-210.358253,0.00068493,120]
[354379501,1740468660216,-210.358253,0.00068493,120]
[354379503,1740468660226,-500.0,0.00068493,120]
[354379504,1740468660237,-1740.45,0.00068493,120]
[354379506,1740468660247,-1091.05,0.00068493,120]
[354379508,1740468660257,-696.88,0.00068493,120]
[354379509,1740468660272,-500.0,0.00068493,120]
[354379511,1740468660282,-500.0,0.00068493,120]
[354379512,1740468660292,-500.0,0.00068493,120]
[354379514,1740468660302,-7345.85,0.00068493,120]
[354379516,1740468660312,-3757.45,0.00068493,120]
[354379517,1740468660322,-1297.71,0.00068493,120]
[354379519,1740468660331,-500.0,0.00068493,120]
[354379521,1740468660342,-1311.59,0.00068493,120]
[354379522,1740468660352,-1867.12,0.00068493,120]
[354379524,1740468660362,-586.39,0.00068493,120]
[354379525,1740468660372,-833.34,0.00068493,120]
[354379527,1740468660382,-500.0,0.00068493,120]
[354379529,1740468660392,-500.0,0.00068493,120]
[354379530,1740468660402,-500.0,0.00068493,120]
[354379532,1740468660413,-1439.34,0.00068493,3]
[354379533,1740468660425,-1916.91,0.00068493,120]
[354379535,1740468660436,-777.06,0.00068493,120]
[354379537,1740468660447,-500.0,0.00068493,120]
[354379538,1740468660457,-500.0,0.00068493,120]
[354379540,1740468660467,-2739.8,0.00068493,120]
[354379542,1740468660477,-500.0,0.00068493,120]
[354379543,1740468660487,-1448.56,0.00068493,120]
[354379545,1740468660497,-3694.66,0.000685,30]
[354379547,1740468660506,-3267.78,0.000687,30]
[354379548,1740468660519,-151.0,0.000687,120]
[354379550,1740468660529,-290.829806,0.000687,120]
[354379551,1740468660538,-290.829806,0.000687,120]
[354379553,1740468660548,-151.0,0.000687,120]
[354379555,1740468660558,-151.0,0.000687,120]
[354379556,1740468660567,-218.011431,0.000687,120]
[354379558,1740468660577,-412.258835,0.000687,120]
[354379559,1740468660587,-412.258835,0.000687,120]
[354379561,1740468660597,-151.0,0.00068767,120]
[354379563,1740468660617,-204.509736,0.00068767,120]
[354379565,1740468660627,-204.509736,0.00068767,120]
[354379566,1740468660637,-450.0,0.00068767,120]
[354379568,1740468660647,-450.0,0.00068767,120]
[354379570,1740468660657,-151.0,0.00068767,120]
[354379571,1740468660667,-237.00367,0.00068767,30]
[354379573,1740468660676,-237.00367,0.00068767,30]
[354379574,1740468660685,-275.001525,0.00068767,120]
[354379576,1740468660695,-275.001525,0.00068767,120]
[354379578,1740468660705,-750.9,0.00068767,120]
[354379579,1740468660714,-500.0,0.00068767,120]
[354379581,1740468660724,-2111.7,0.00068767,120]
[354379583,1740468660734,-516.54,0.00068767,120]
[354379584,1740468660744,-555.272174,0.00068767,120]
[354379586,1740468660753,-555.272174,0.00068767,120]
[354379587,1740468660766,-500.0,0.00068767,120]
[354379588,1740468660777,-500.0,0.00068767,120]
[354379589,1740468660787,-1360.77,0.00068767,20]
[354379590,1740468660798,-500.0,0.00068767,120]
[354379591,1740468660808,-1249.99,0.00068767,120]
[354379592,1740468660818,-500.0,0.00068767,120]
[354379593,1740468660828,-151.0,0.00068767,120]
[354379594,1740468660840,-500.0,0.00068767,120]
[354379595,1740468660849,-498.36,0.00068767,120]
[354379596,1740468660859,-1236.21,0.00068767,120]
[354379597,1740468660868,-385.62377,0.00068767,120]
[354379598,1740468660878,-500.0,0.00068767,120]
[354379599,1740468660888,-385.62377,0.00068767,120]
[354379600,1740468660897,-157.663645,0.00068767,120]
[354379601,1740468660907,-157.663645,0.00068767,120]
[354379602,1740468660916,-500.0,0.00068767,120]
[354379603,1740468660926,-230.71,0.00068767,120]
[354379605,1740468660935,-500.0,0.00068767,120]
[354379607,1740468660945,-500.0,0.00068767,120]
[354379609,1740468660955,-500.0,0.00068767,120]
[354379611,1740468660964,-510.415886,0.00068767,120]
[354379613,1740468660974,-510.415886,0.00068767,120]
[354379615,1740468660984,-500.0,0.00068767,120]
[354379617,1740468660994,-500.0,0.00068767,120]
[354379619,1740468661004,-500.0,0.00068767,120]
[354379621,1740468661016,-250.0,0.00068767,120]
[354379623,1740468661026,-500.0,0.00068767,120]
[354379625,1740468661036,-588.66,0.00068767,120]
[354379627,1740468661046,-151.0,0.00068767,120]
[354379629,1740468661056,-151.0,0.00068767,120]
[354379631,1740468661066,-196.053098,0.00068767,120]
[354379633,1740468661076,-196.053098,0.00068767,120]
[354379635,1740468661086,-1694.77,0.00068767,120]
[354379637,1740468661098,-273.315442,0.00068767,120]
[354379639,1740468661109,-500.0,0.00068767,120]
[354379641,1740468661119,-6822.91,0.00068767,120]
[354379643,1740468661128,-273.315442,0.00068767,120]
[354379645,1740468661138,-320.47921124,0.00068767,120]
[354379647,1740468661147,-151.0,0.00068767,120]
[354379649,1740468661157,-500.0,0.00068767,120]
[354379651,1740468661169,-109394.36,0.00068767,7]
[354379653,1740468661178,-500.0,0.00068767,120]
[354379655,1740468661188,-587.87942524,0.00068767,120]
[354379657,1740468661198,-500.0,0.00068767,120]
[354379659,1740468661208,-8184.75,0.00068767,120]
[354379661,1740468661217,-845.92,0.00068767,120]
[354379663,1740468661227,-500.0,0.00068767,120]
[354379665,1740468661236,-500.0,0.00068767,120]
[354379667,1740468661247,-500.0,0.00068767,120]
[354379669,1740468661256,-3001.35,0.00068767,120]
[354379678,1740468661343,-500.0,0.00068767,120]
[354379680,1740468661355,-1623.81,0.00068767,120]
[354379683,1740468661365,-1251.72,0.00068767,120]
[354379685,1740468661375,-500.0,0.00068767,120]
[354379687,1740468661386,-500.0,0.00068767,120]
[354379689,1740468661396,-724.54,0.00068767,120]
[354379691,1740468661406,-2534.53,0.00068767,120]
[354379693,1740468661416,-500.0,0.00068767,120]
[354379695,1740468661426,-210.358253,0.00068767,120]
[354379697,1740468661436,-210.358253,0.00068767,120]
[354379699,1740468661446,-500.0,0.00068767,120]
[354379701,1740468661456,-1740.45,0.00068767,120]
[354379703,1740468661466,-1091.05,0.00068767,120]
[354379705,1740468661476,-696.88,0.00068767,120]
[354379707,1740468661485,-500.0,0.00068767,120]
[354379709,1740468661494,-500.0,0.00068767,120]
[354379711,1740468661504,-500.0,0.00068767,120]
[354379713,1740468661517,-7345.85,0.00068767,120]
[354379715,1740468661528,-3757.45,0.00068767,120]
[354379717,1740468661538,-1297.71,0.00068767,120]
[354379719,1740468661550,-500.0,0.00068767,120]
[354379721,1740468661560,-1311.59,0.00068767,120]
[354379723,1740468661571,-1867.12,0.00068767,120]
[354379725,1740468661581,-586.39,0.00068767,120]
[354379727,1740468661592,-833.34,0.00068767,120]
[354379728,1740468661602,-500.0,0.00068767,120]
[354379730,1740468661613,-500.0,0.00068767,120]
[354379732,1740468661624,-198.66,0.00068767,120]
[354379735,1740468661636,-1439.34,0.00068767,3]
[354379737,1740468661646,-1916.91,0.00068767,120]
[354379739,1740468661656,-777.06,0.00068767,120]
[354379741,1740468661666,-500.0,0.00068767,120]
[354379743,1740468661676,-2739.8,0.00068767,120]
[354379745,1740468661687,-500.0,0.00068767,120]
[354379747,1740468661697,-1448.56,0.00068767,120]
[354379749,1740468661707,-22420.09006633,0.00069,120]
[354379751,1740468661716,-500.0,0.00069,60]
[354379753,1740468661726,-271.974035,0.00069041,120]
[354379755,1740468661736,-271.974035,0.00069041,120]
[354379757,1740468661746,-158.873165,0.00069041,120]
[354379759,1740468661756,-158.873165,0.00069041,120]
[354379761,1740468661770,-369.761236,0.00069041,120]
[354379763,1740468661779,-369.761236,0.00069041,120]
[354379765,1740468661789,-1042.28525285,0.00069041,120]
[354379767,1740468661799,-500.0,0.00069041,30]
[354379769,1740468661809,-500.0,0.00069041,30]
[354379771,1740468661819,-750.9,0.00069041,120]
[354379773,1740468661829,-500.0,0.00069041,120]
[354379775,1740468661839,-2111.7,0.00069041,120]
[354379777,1740468661851,-516.54,0.00069041,120]
[354379779,1740468661861,-500.0,0.00069041,120]
[354379781,1740468661873,-151.0,0.00069041,120]
[354379783,1740468661882,-501.66677192,0.00069041,120]
[354379785,1740468661892,-1360.77,0.00069041,20]
[354379787,1740468661902,-500.0,0.00069041,120]
[354379789,1740468661913,-1249.99,0.00069041,120]
[354379791,1740468661923,-151.0,0.00069041,120]
[354379793,1740468661934,-500.0,0.00069041,120]
[354379795,1740468661944,-290.829806,0.00069041,120]
[354379797,1740468661955,-290.829806,0.00069041,120]
[354379799,1740468661965,-500.0,0.00069041,120]
[354379801,1740468661975,-1236.21,0.00069041,120]
[354379803,1740468661985,-157.663645,0.00069041,120]
[354379805,1740468661995,-157.663645,0.00069041,120]
[354379807,1740468662005,-500.0,0.00069041,120]
[354379809,1740468662019,-500.0,0.00069041,120]
[354379811,1740468662029,-500.0,0.00069041,120]
[354379813,1740468662040,-515.01154115,0.00069041,120]
[354379815,1740468662050,-510.415886,0.00069041,120]
[354379817,1740468662066,-510.415886,0.00069041,120]
[354379819,1740468662076,-519.7918245,0.00069041,120]
[354379821,1740468662086,-500.0,0.00069041,120]
[354379823,1740468662097,-500.0,0.00069041,120]
[354379825,1740468662109,-250.0,0.00069041,120]
[354379827,1740468662119,-500.0,0.00069041,120]
[354379829,1740468662130,-151.0,0.00069041,120]
[354379831,1740468662140,-588.66,0.00069041,120]
[354379833,1740468662151,-151.0,0.00069041,120]
[354379835,1740468662164,-196.053098,0.00069041,120]
[354379837,1740468662175,-196.053098,0.00069041,120]
[354379839,1740468662186,-1694.77,0.00069041,120]
[354379841,1740468662196,-273.315442,0.00069041,120]
[354379843,1740468662206,-500.0,0.00069041,120]
[354379845,1740468662217,-6822.91,0.00069041,120]
[354379847,1740468662227,-273.315442,0.00069041,120]
[354379849,1740468662237,-151.0,0.00069041,120]
[354379851,1740468662247,-500.0,0.00069041,120]
[354379853,1740468662257,-109394.36,0.00069041,7]
[354379855,1740468662271,-353.05,0.00069041,120]
[354379857,1740468662282,-500.0,0.00069041,120]
[354379859,1740468662292,-8184.75,0.00069041,120]
[354379861,1740468662301,-845.92,0.00069041,120]
[354379863,1740468662311,-500.0,0.00069041,120]
[354379865,1740468662321,-500.0,0.00069041,120]
[354379867,1740468662332,-500.0,0.00069041,120]
[354379869,1740468662342,-3001.35,0.00069041,120]
[354379871,1740468662351,-500.0,0.00069041,120]
[354379873,1740468662361,-1623.81,0.00069041,120]
[354379875,1740468662372,-1251.72,0.00069041,120]
[354379878,1740468662383,-500.0,0.00069041,120]
[354379880,1740468662393,-500.0,0.00069041,120]
[354379882,1740468662403,-724.54,0.00069041,120]
[354379884,1740468662414,-2534.53,0.00069041,120]
[354379886,1740468662426,-210.56,0.00069041,120]
[354379888,1740468662437,-210.358253,0.00069041,120]
[354379890,1740468662447,-210.358253,0.00069041,120]
[354379892,1740468662457,-500.0,0.00069041,120]
[354379894,1740468662470,-1740.45,0.00069041,120]
[354379896,1740468662481,-1091.05,0.00069041,120]
[354379898,1740468662492,-696.88,0.00069041,120]
[354379900,1740468662502,-500.0,0.00069041,120]
[354379902,1740468662514,-500.0,0.00069041,120]
[354379904,1740468662524,-500.0,0.00069041,120]
[354379906,1740468662534,-7345.85,0.00069041,120]
[354379908,1740468662545,-3757.45,0.00069041,120]
[354379910,1740468662554,-1297.71,0.00069041,120]
[354379912,1740468662564,-500.0,0.00069041,120]
[354379914,1740468662573,-1311.59,0.00069041,120]
[354379916,1740468662583,-1867.12,0.00069041,120]
[354379918,1740468662593,-586.39,0.00069041,120]
[354379920,1740468662603,-833.34,0.00069041,120]
[354379922,1740468662613,-191.03604488,0.00069041,120]
[354379924,1740468662622,-500.0,0.00069041,120]
[354379926,1740468662631,-1439.34,0.00069041,3]
[354379928,1740468662641,-1916.91,0.00069041,120]
[354379930,1740468662651,-777.06,0.00069041,120]
[354379932,1740468662661,-412.258835,0.00069041,120]
[354379934,1740468662670,-266.39,0.00069041,120]
[354379936,1740468662680,-2739.8,0.00069041,120]
[354379938,1740468662691,-500.0,0.00069041,120]
[354379940,1740468662700,-412.258835,0.00069041,120]
[354379950,1740468662775,-1448.56,0.00069041,120]
[354379952,1740468662794,-271.974035,0.000691,120]
[354379954,1740468662804,-271.974035,0.000691,120]
[354379956,1740468662815,-158.873165,0.000691,120]
[354379958,1740468662824,-158.873165,0.000691,120]
[354379960,1740468662834,-204.509736,0.000691,120]
[354379962,1740468662844,-204.509736,0.000691,120]
[354379964,1740468662854,-450.0,0.000691,120]
[354379966,1740468662863,-450.0,0.000691,120]
[354379968,1740468662873,-7379.61,0.000692,30]
[354379970,1740468662883,-151.0,0.000692,120]
[354379972,1740468662893,-385.62377,0.000692,120]
[354379974,1740468662902,-385.62377,0.000692,120]
[354379976,1740468662912,-151.0,0.000692,120]
[354379978,1740468662921,-2000.0,0.0006922,14]
[354379980,1740468662931,-2000.0,0.0006922,15]
[354379982,1740468662940,-238.265994,0.00069315,120]
[354379984,1740468662950,-151.0,0.00069315,120]
[354379986,1740468662960,-237.00367,0.00069315,30]
[354379988,1740468662970,-237.003664,0.00069315,30]
[354379990,1740468662980,-275.001525,0.00069315,120]
[354379992,1740468662990,-275.001518,0.00069315,120]
[354379994,1740468662999,-750.9,0.00069315,120]
[354379996,1740468663009,-500.0,0.00069315,120]
[354379998,1740468663022,-2111.7,0.00069315,120]
[354380000,1740468663032,-516.54,0.00069315,120]
[354380001,1740468663042,-555.272174,0.00069315,120]
[354380003,1740468663052,-555.272174,0.00069315,120]
[354380004,1740468663066,-500.0,0.00069315,120]
[354380005,1740468663076,-1360.77,0.00069315,20]
[354380006,1740468663086,-500.0,0.00069315,120]
[354380007,1740468663095,-1249.99,0.00069315,120]
[354380008,1740468663108,-500.0,0.00069315,120]
[354380009,1740468663118,-500.0,0.00069315,120]
[354380010,1740468663129,-1236.21,0.00069315,120]
[354380011,1740468663139,-570.91494225,0.00069315,120]
[354380012,1740468663150,-636.19,0.00069315,120]
[354380013,1740468663163,-500.0,0.00069315,120]
[354380014,1740468663174,-500.0,0.00069315,120]
[354380016,1740468663185,-500.0,0.00069315,120]
[354380018,1740468663197,-250.0,0.00069315,120]
[354380020,1740468663208,-500.0,0.00069315,120]
[354380022,1740468663219,-588.66,0.00069315,120]
[354380023,1740468663230,-1694.77,0.00069315,120]
[354380025,1740468663241,-500.0,0.00069315,120]
[354380027,1740468663253,-6822.91,0.00069315,120]
[354380029,1740468663266,-500.0,0.00069315,120]
[354380032,1740468663277,-109394.36,0.00069315,7]
[354380034,1740468663288,-500.0,0.00069315,120]
[354380036,1740468663299,-8184.75,0.00069315,120]
[354380038,1740468663309,-845.92,0.00069315,120]
[354380040,1740468663319,-500.0,0.00069315,120]
[354380042,1740468663329,-500.0,0.00069315,120]
[354380044,1740468663340,-500.0,0.00069315,120]
[354380046,1740468663351,-3001.35,0.00069315,120]
[354380048,1740468663361,-500.0,0.00069315,120]
[354380050,1740468663372,-1623.81,0.00069315,120]
[354380052,1740468663383,-1251.72,0.00069315,120]
[354380054,1740468663395,-500.0,0.00069315,120]
[354380056,1740468663406,-500.0,0.00069315,120]
[354380058,1740468663416,-724.54,0.00069315,120]
[354380059,1740468663427,-500.0,0.00069315,120]
[354380062,1740468663438,-1740.45,0.00069315,120]
[354380063,1740468663449,-1091.05,0.00069315,120]
[354380066,1740468663460,-696.88,0.00069315,120]
[354380068,1740468663471,-538.73,0.00069315,120]
[354380070,1740468663482,-500.0,0.00069315,120]
[354380072,1740468663493,-500.0,0.00069315,120]
[354380074,1740468663505,-7345.85,0.00069315,120]
[354380076,1740468663520,-3757.45,0.00069315,120]
[354380078,1740468663531,-1297.71,0.00069315,120]
[354380080,1740468663543,-500.0,0.00069315,120]
[354380082,1740468663553,-1311.59,0.00069315,120]
[354380084,1740468663565,-1867.12,0.00069315,120]
[354380086,1740468663575,-586.39,0.00069315,120]
[354380088,1740468663586,-833.34,0.00069315,120]
[354380090,1740468663597,-500.0,0.00069315,120]
[354380092,1740468663608,-1439.34,0.00069315,3]
[354380094,1740468663619,-1916.91,0.00069315,120]
[354380096,1740468663630,-777.06,0.00069315,120]
[354380098,1740468663640,-2739.8,0.00069315,120]
[354380099,1740468663650,-500.0,0.00069315,120]
[354380101,1740468663661,-1448.56,0.00069315,120]
[354380103,1740468663671,-271.974035,0.00069589,120]
[354380106,1740468663682,-271.974029,0.00069589,120]
[354380108,1740468663693,-158.873165,0.00069589,120]
[354380110,1740468663704,-158.87317,0.00069589,120]
[354380112,1740468663715,-204.509736,0.00069589,120]
[354380114,1740468663725,-204.509738,0.00069589,120]
[354380116,1740468663735,-450.0,0.00069589,120]
[354380118,1740468663745,-450.0,0.00069589,120]
[354380120,1740468663755,-369.761236,0.00069589,120]
[354380122,1740468663769,-369.761236,0.00069589,120]
[354380124,1740468663779,-500.0,0.00069589,30]
[354380126,1740468663789,-500.0,0.00069589,30]
[354380128,1740468663799,-750.9,0.00069589,120]
[354380130,1740468663810,-573.00000001,0.00069589,120]
[354380132,1740468663820,-2111.7,0.00069589,120]
[354380134,1740468663831,-516.54,0.00069589,120]
[354380136,1740468663841,-500.0,0.00069589,120]
[354380138,1740468663852,-151.0,0.00069589,120]
[354380140,1740468663862,-1360.77,0.00069589,20]
[354380142,1740468663872,-500.0,0.00069589,120]
[354380143,1740468663883,-1249.99,0.00069589,120]
[354380145,1740468663893,-151.0,0.00069589,120]
[354380147,1740468663903,-501.795944,0.00069589,120]
[354380150,1740468663914,-290.829806,0.00069589,120]
[354380152,1740468663925,-290.829797,0.00069589,120]
[354380154,1740468663935,-500.0,0.00069589,120]
[354380156,1740468663945,-1236.21,0.00069589,120]
[354380158,1740468663955,-157.663645,0.00069589,120]
[354380160,1740468663965,-157.663646,0.00069589,120]
[354380162,1740468663977,-559.19919587,0.00069589,120]
[354380164,1740468663988,-510.415886,0.00069589,120]
[354380166,1740468663998,-510.41587806,0.00069589,120]
[354380168,1740468664009,-500.0,0.00069589,120]